[Event "Titled Tuesday Blitz October 25 Late 2022"]
[White "Varriale, Luca"]
[Black "Rodriguez Santiago, Jaime"]
[WhiteFideId "882461"]
[BlackFideId "3100898"]
[WhiteElo "2245"]
[BlackElo "2025"]
[Result "1-0"]
[Round "08"]
[TimeControl "180+1"]
[Date "2022.10.26"]
[WhiteClock "0:00:28"]
[BlackClock "0:00:34"]

1. d4 {[%clk 0:03:00]}  g6 {[%clk 0:02:58]} 2. c4 {[%clk 0:03:00]}  Bg7 {[%clk 0:02:57]} 3. Nc3 {[%clk 0:03:00]}  c5 {[%clk 0:02:58]} 4. d5 {[%clk 0:02:55]}  d6 {[%clk 0:02:57]} 5. e4 {[%clk 0:02:50]}  e6 {[%clk 0:02:57]} 6. Nf3 {[%clk 0:02:44]}  a6 {[%clk 0:02:54]} 7. a4 {[%clk 0:02:42]}  Ne7 {[%clk 0:02:54]} 8. Be2 {[%clk 0:02:41]}  O-O {[%clk 0:02:54]} 9. O-O {[%clk 0:02:41]}  exd5 {[%clk 0:02:51]} 10. cxd5 {[%clk 0:02:31]}  Bg4 {[%clk 0:02:50]} 11. Nd2 {[%clk 0:02:30]}  Bxe2 {[%clk 0:02:46]} 12. Qxe2 {[%clk 0:02:31]}  Nd7 {[%clk 0:02:45]} 13. Nc4 {[%clk 0:02:31]}  Ne5 {[%clk 0:02:35]} 14. Nxe5 {[%clk 0:02:13]}  Bxe5 {[%clk 0:02:36]} 15. Bd2 {[%clk 0:02:10]}  f5 {[%clk 0:02:33]} 16. f4 {[%clk 0:02:07]}  Bg7 {[%clk 0:02:31]} 17. e5 {[%clk 0:02:07]}  dxe5 {[%clk 0:02:29]} 18. fxe5 {[%clk 0:02:08]}  Kh8 {[%clk 0:02:24]} 19. Qc4 {[%clk 0:02:06]}  Rc8 {[%clk 0:02:11]} 20. Bf4 {[%clk 0:01:46]}  h6 {[%clk 0:02:07]} 21. d6 {[%clk 0:01:43]}  Nc6 {[%clk 0:02:03]} 22. e6 {[%clk 0:01:41]}  Re8 {[%clk 0:01:59]} 23. e7 {[%clk 0:01:34]}  Nxe7 {[%clk 0:01:57]} 24. dxe7 {[%clk 0:01:33]}  Qxe7 {[%clk 0:01:56]} 25. Nd5 {[%clk 0:01:22]}  Qf7 {[%clk 0:01:36]} 26. Nb6 {[%clk 0:01:14]}  Qxc4 {[%clk 0:01:35]} 27. Nxc4 {[%clk 0:01:15]}  b5 {[%clk 0:01:35]} 28. axb5 {[%clk 0:01:14]}  axb5 {[%clk 0:01:35]} 29. Nd6 {[%clk 0:01:15]}  Bxb2 {[%clk 0:01:33]} 30. Rab1 {[%clk 0:01:07]}  Bd4+ {[%clk 0:01:31]} 31. Kh1 {[%clk 0:01:07]}  b4 {[%clk 0:01:31]} 32. Nxe8 {[%clk 0:01:02]}  Rxe8 {[%clk 0:01:31]} 33. Bxh6 {[%clk 0:01:01]}  Re2 {[%clk 0:01:24]} 34. Rfe1 {[%clk 0:00:54]}  Ra2 {[%clk 0:01:21]} 35. Be3 {[%clk 0:00:54]}  Bc3 {[%clk 0:01:19]} 36. Red1 {[%clk 0:00:49]}  c4 {[%clk 0:01:17]} 37. Rdc1 {[%clk 0:00:45]}  Kh7 {[%clk 0:01:14]} 38. h3 {[%clk 0:00:37]}  Re2 {[%clk 0:00:47]} 39. Bc5 {[%clk 0:00:33]}  f4 {[%clk 0:00:40]} 40. Bxb4 {[%clk 0:00:32]}  Bxb4 {[%clk 0:00:38]} 41. Rxb4 {[%clk 0:00:33]}  f3 {[%clk 0:00:38]} 42. gxf3 {[%clk 0:00:31]}  Rf2 {[%clk 0:00:38]} 43. Rc3 {[%clk 0:00:29]}  Kh6 {[%clk 0:00:35]} 44. Rbxc4 {[%clk 0:00:30]}  Rf1+ {[%clk 0:00:34]} 45. Kg2 {[%clk 0:00:30]}  Rd1 {[%clk 0:00:34]} 46. Rh4+ {[%clk 0:00:28]} 1-0


[Site "https://www.chess.com"]

[Event "Titled Tuesday Blitz October 25 Late 2022"]
[White "Velikanov, Alexander"]
[Black "Holt, Conrad"]
[WhiteFideId "2039290"]
[BlackFideId "2034387"]
[WhiteElo "2259"]
[BlackElo "2592"]
[Result "0-1"]
[Round "08"]
[TimeControl "180+1"]
[Date "2022.10.26"]
[WhiteClock "0:00:02"]
[BlackClock "0:00:12"]

1. e4 {[%clk 0:03:00]}  e6 {[%clk 0:02:58]} 2. d4 {[%clk 0:02:56]}  d5 {[%clk 0:02:59]} 3. exd5 {[%clk 0:02:57]}  exd5 {[%clk 0:02:59]} 4. Nf3 {[%clk 0:02:58]}  Bd6 {[%clk 0:02:58]} 5. c4 {[%clk 0:02:57]}  c6 {[%clk 0:02:54]} 6. Nc3 {[%clk 0:02:57]}  Ne7 {[%clk 0:02:54]} 7. Bd3 {[%clk 0:02:57]}  dxc4 {[%clk 0:02:53]} 8. Bxc4 {[%clk 0:02:58]}  O-O {[%clk 0:02:53]} 9. O-O {[%clk 0:02:58]}  Nd7 {[%clk 0:02:53]} 10. Bg5 {[%clk 0:02:57]}  Nb6 {[%clk 0:02:53]} 11. Bb3 {[%clk 0:02:57]}  Kh8 {[%clk 0:02:49]} 12. Re1 {[%clk 0:02:51]}  f6 {[%clk 0:02:49]} 13. Bh4 {[%clk 0:02:50]}  Bg4 {[%clk 0:02:47]} 14. h3 {[%clk 0:02:26]}  Bh5 {[%clk 0:02:38]} 15. g4 {[%clk 0:02:00]}  Bf7 {[%clk 0:02:36]} 16. Bxf7 {[%clk 0:01:53]}  Rxf7 {[%clk 0:02:35]} 17. Ne4 {[%clk 0:01:51]}  Bb8 {[%clk 0:02:35]} 18. Nc5 {[%clk 0:01:46]}  Ng6 {[%clk 0:02:34]} 19. Qb3 {[%clk 0:01:28]}  Qg8 {[%clk 0:02:19]} 20. Re4 {[%clk 0:01:15]}  Bd6 {[%clk 0:02:16]} 21. Rae1 {[%clk 0:01:14]}  Rd8 {[%clk 0:01:55]} 22. Ne6 {[%clk 0:01:06]}  Rb8 {[%clk 0:01:53]} 23. Bg3 {[%clk 0:01:01]}  Bxg3 {[%clk 0:01:51]} 24. fxg3 {[%clk 0:01:02]}  Nd5 {[%clk 0:01:49]} 25. h4 {[%clk 0:00:44]}  Re7 {[%clk 0:01:10]} 26. g5 {[%clk 0:00:23]}  Rbe8 {[%clk 0:01:02]} 27. Nc5 {[%clk 0:00:17]}  Rxe4 {[%clk 0:01:01]} 28. Rxe4 {[%clk 0:00:18]}  Rxe4 {[%clk 0:01:01]} 29. Nxe4 {[%clk 0:00:19]}  Qb8 {[%clk 0:00:43]} 30. h5 {[%clk 0:00:13]}  Nge7 {[%clk 0:00:43]} 31. h6 {[%clk 0:00:11]}  Nf5 {[%clk 0:00:38]} 32. hxg7+ {[%clk 0:00:10]}  Kxg7 {[%clk 0:00:38]} 33. gxf6+ {[%clk 0:00:01]}  Nxf6 {[%clk 0:00:38]} 34. Ne5 {[%clk 0:00:02]}  Nd5 {[%clk 0:00:16]} 35. Nc5 {[%clk 0:00:02]}  Nxd4 {[%clk 0:00:12]} 36. Qc4 {[%clk 0:00:02]}  Qxe5 {[%clk 0:00:12]} 37. Kg2 {[%clk 0:00:02]}  Ne3+ {[%clk 0:00:12]} 0-1


[Site "https://www.chess.com"]

[Event "Titled Tuesday Blitz October 25 Late 2022"]
[White "Vlassov, Nikolai"]
[Black "Liu, Kelsey"]
[WhiteFideId "4103360"]
[BlackFideId "30944481"]
[WhiteElo "2324"]
[BlackElo "2340"]
[Result "1-0"]
[Round "08"]
[TimeControl "180+1"]
[Date "2022.10.26"]
[WhiteClock "0:00:05"]
[BlackClock "0:00:09"]

1. e4 {[%clk 0:03:00]}  c5 {[%clk 0:02:58]} 2. c3 {[%clk 0:03:00]}  Nf6 {[%clk 0:02:57]} 3. e5 {[%clk 0:03:00]}  Nd5 {[%clk 0:02:57]} 4. d4 {[%clk 0:03:00]}  cxd4 {[%clk 0:02:55]} 5. cxd4 {[%clk 0:03:00]}  d6 {[%clk 0:02:56]} 6. Bc4 {[%clk 0:02:59]}  e6 {[%clk 0:02:56]} 7. Nf3 {[%clk 0:02:59]}  Be7 {[%clk 0:02:55]} 8. O-O {[%clk 0:02:58]}  O-O {[%clk 0:02:55]} 9. Qe2 {[%clk 0:02:54]}  Nc6 {[%clk 0:02:49]} 10. Qe4 {[%clk 0:02:52]}  Ndb4 {[%clk 0:02:34]} 11. Bb3 {[%clk 0:02:51]}  d5 {[%clk 0:02:04]} 12. Qg4 {[%clk 0:02:50]}  f5 {[%clk 0:01:54]} 13. exf6 {[%clk 0:02:50]}  Bxf6 {[%clk 0:01:54]} 14. a3 {[%clk 0:02:31]}  Nd3 {[%clk 0:01:45]} 15. Nc3 {[%clk 0:02:22]}  e5 {[%clk 0:01:34]} 16. Qh5 {[%clk 0:01:57]}  Be6 {[%clk 0:01:18]} 17. dxe5 {[%clk 0:01:51]}  Ncxe5 {[%clk 0:01:11]} 18. Nxe5 {[%clk 0:01:51]}  Nxe5 {[%clk 0:00:57]} 19. h3 {[%clk 0:01:45]}  Qd7 {[%clk 0:00:34]} 20. Rd1 {[%clk 0:01:31]}  d4 {[%clk 0:00:23]} 21. Bxe6+ {[%clk 0:01:30]}  Qxe6 {[%clk 0:00:23]} 22. Ne4 {[%clk 0:01:30]}  Rad8 {[%clk 0:00:18]} 23. f3 {[%clk 0:01:00]}  Be7 {[%clk 0:00:13]} 24. Bg5 {[%clk 0:00:58]}  h6 {[%clk 0:00:07]} 25. Bxe7 {[%clk 0:00:55]}  Qxe7 {[%clk 0:00:08]} 26. Rac1 {[%clk 0:00:51]}  d3 {[%clk 0:00:08]} 27. Rc5 {[%clk 0:00:47]}  Nc6 {[%clk 0:00:05]} 28. Rd5 {[%clk 0:00:44]}  Qe6 {[%clk 0:00:02]} 29. R1xd3 {[%clk 0:00:41]}  Rxd5 {[%clk 0:00:02]} 30. Qxd5 {[%clk 0:00:40]}  Qxd5 {[%clk 0:00:03]} 31. Rxd5 {[%clk 0:00:41]}  Rd8 {[%clk 0:00:02]} 32. Rxd8+ {[%clk 0:00:39]}  Nxd8 {[%clk 0:00:03]} 33. Kf2 {[%clk 0:00:39]}  Kf7 {[%clk 0:00:03]} 34. Ke3 {[%clk 0:00:39]}  Ke6 {[%clk 0:00:04]} 35. Kd4 {[%clk 0:00:39]}  Nc6+ {[%clk 0:00:03]} 36. Kc5 {[%clk 0:00:39]}  Ne5 {[%clk 0:00:02]} 37. Kd4 {[%clk 0:00:32]}  b6 {[%clk 0:00:02]} 38. f4 {[%clk 0:00:28]}  Nc6+ {[%clk 0:00:03]} 39. Ke3 {[%clk 0:00:27]}  Kd5 {[%clk 0:00:03]} 40. g4 {[%clk 0:00:26]}  Kc4 {[%clk 0:00:04]} 41. Nd2+ {[%clk 0:00:25]}  Kb5 {[%clk 0:00:03]} 42. Ke4 {[%clk 0:00:21]}  Kc5 {[%clk 0:00:02]} 43. Kf5 {[%clk 0:00:20]}  a5 {[%clk 0:00:03]} 44. Kg6 {[%clk 0:00:19]}  Kd4 {[%clk 0:00:03]} 45. Kxg7 {[%clk 0:00:19]}  Kd3 {[%clk 0:00:04]} 46. Nf3 {[%clk 0:00:18]}  Ke3 {[%clk 0:00:04]} 47. Ne5 {[%clk 0:00:13]}  Nd4 {[%clk 0:00:04]} 48. f5 {[%clk 0:00:11]}  Kf4 {[%clk 0:00:03]} 49. Nf7 {[%clk 0:00:07]}  h5 {[%clk 0:00:03]} 50. gxh5 {[%clk 0:00:03]}  Nxf5+ {[%clk 0:00:04]} 51. Kg6 {[%clk 0:00:02]}  b5 {[%clk 0:00:03]} 52. h6 {[%clk 0:00:02]}  Nxh6 {[%clk 0:00:03]} 53. Kxh6 {[%clk 0:00:01]}  Kg3 {[%clk 0:00:04]} 54. Ng5 {[%clk 0:00:01]}  b4 {[%clk 0:00:04]} 55. axb4 {[%clk 0:00:01]}  axb4 {[%clk 0:00:04]} 56. Kh5 {[%clk 0:00:01]}  b3 {[%clk 0:00:04]} 57. h4 {[%clk 0:00:02]}  Kf4 {[%clk 0:00:05]} 58. Ne6+ {[%clk 0:00:02]}  Ke3 {[%clk 0:00:05]} 59. Nc5 {[%clk 0:00:02]}  Kd2 {[%clk 0:00:06]} 60. Nxb3+ {[%clk 0:00:03]}  Kc2 {[%clk 0:00:06]} 61. Nc5 {[%clk 0:00:04]}  Kxb2 {[%clk 0:00:07]} 62. Kg6 {[%clk 0:00:04]}  Kc3 {[%clk 0:00:08]} 63. h5 {[%clk 0:00:05]}  Kd4 {[%clk 0:00:09]} 64. h6 {[%clk 0:00:05]} 1-0


[Site "https://www.chess.com"]

[Event "Titled Tuesday Blitz October 25 Late 2022"]
[White "Vovk, Orest"]
[Black "Ballester Llagaria, Luis Eduardo"]
[WhiteFideId "14113490"]
[BlackFideId "2297620"]
[WhiteElo "2215"]
[BlackElo "2344"]
[Result "1-0"]
[Round "08"]
[TimeControl "180+1"]
[Date "2022.10.26"]
[WhiteClock "0:00:11"]
[BlackClock "0:00:15"]

1. h4 {[%clk 0:03:00]}  e5 {[%clk 0:02:59]} 2. h5 {[%clk 0:02:59]}  d5 {[%clk 0:02:59]} 3. h6 {[%clk 0:02:58]}  Nxh6 {[%clk 0:02:59]} 4. d4 {[%clk 0:02:58]}  e4 {[%clk 0:02:39]} 5. Bxh6 {[%clk 0:02:58]}  gxh6 {[%clk 0:02:40]} 6. e3 {[%clk 0:02:59]}  Be6 {[%clk 0:02:28]} 7. c4 {[%clk 0:02:56]}  c6 {[%clk 0:02:23]} 8. Nc3 {[%clk 0:02:50]}  Qb6 {[%clk 0:02:17]} 9. Qb3 {[%clk 0:02:47]}  Qxb3 {[%clk 0:02:14]} 10. axb3 {[%clk 0:02:48]}  Nd7 {[%clk 0:02:14]} 11. c5 {[%clk 0:02:42]}  a6 {[%clk 0:02:11]} 12. b4 {[%clk 0:02:42]}  Rb8 {[%clk 0:02:08]} 13. Nge2 {[%clk 0:02:40]}  Bg7 {[%clk 0:02:05]} 14. Nf4 {[%clk 0:02:40]}  Ke7 {[%clk 0:02:03]} 15. Be2 {[%clk 0:02:35]}  Nf6 {[%clk 0:02:00]} 16. Kd2 {[%clk 0:02:24]}  Rhg8 {[%clk 0:01:59]} 17. Kc2 {[%clk 0:02:20]}  Bf8 {[%clk 0:01:55]} 18. g3 {[%clk 0:02:20]}  Bg4 {[%clk 0:01:54]} 19. Kd2 {[%clk 0:02:12]}  h5 {[%clk 0:01:40]} 20. Bxg4 {[%clk 0:01:30]}  hxg4 {[%clk 0:01:32]} 21. Rh4 {[%clk 0:01:12]}  Rg5 {[%clk 0:01:17]} 22. b5 {[%clk 0:00:51]}  axb5 {[%clk 0:01:16]} 23. Ra7 {[%clk 0:00:51]}  h5 {[%clk 0:01:07]} 24. Na2 {[%clk 0:00:49]}  Bh6 {[%clk 0:00:58]} 25. Nb4 {[%clk 0:00:49]}  Ke8 {[%clk 0:00:54]} 26. Rh1 {[%clk 0:00:45]}  Rf5 {[%clk 0:00:52]} 27. Ke2 {[%clk 0:00:32]}  Bxf4 {[%clk 0:00:52]} 28. exf4 {[%clk 0:00:32]}  Nd7 {[%clk 0:00:36]} 29. Nc2 {[%clk 0:00:31]}  Nf8 {[%clk 0:00:28]} 30. Ne3 {[%clk 0:00:30]}  Rf6 {[%clk 0:00:29]} 31. Rxh5 {[%clk 0:00:30]}  Kd7 {[%clk 0:00:26]} 32. Nxg4 {[%clk 0:00:29]}  Re6 {[%clk 0:00:24]} 33. Ne5+ {[%clk 0:00:28]}  Ke8 {[%clk 0:00:24]} 34. Rh8 {[%clk 0:00:24]}  Ke7 {[%clk 0:00:24]} 35. f5 {[%clk 0:00:22]}  Rf6 {[%clk 0:00:21]} 36. g4 {[%clk 0:00:19]}  b4 {[%clk 0:00:14]} 37. b3 {[%clk 0:00:18]}  Ke8 {[%clk 0:00:12]} 38. Rxf8+ {[%clk 0:00:16]}  Kxf8 {[%clk 0:00:13]} 39. Nd7+ {[%clk 0:00:17]}  Kg7 {[%clk 0:00:13]} 40. Nxb8 {[%clk 0:00:17]}  Rh6 {[%clk 0:00:14]} 41. Rxb7 {[%clk 0:00:15]}  Rh4 {[%clk 0:00:14]} 42. Nxc6 {[%clk 0:00:14]}  Rxg4 {[%clk 0:00:15]} 43. Nxb4 {[%clk 0:00:11]}  Rf4 {[%clk 0:00:16]} 44. Nxd5 {[%clk 0:00:11]}  Rxf5 {[%clk 0:00:16]} 45. Ne3 {[%clk 0:00:11]}  Rf6 {[%clk 0:00:15]} 46. d5 {[%clk 0:00:11]}  Rb6 {[%clk 0:00:15]} 47. Rxb6 {[%clk 0:00:11]} 1-0


[Site "https://www.chess.com"]

[Event "Titled Tuesday Blitz October 25 Late 2022"]
[White "Yeletsky, Ivan"]
[Black "Goryachkina, Aleksandra"]
[WhiteFideId "24180327"]
[BlackFideId "4147103"]
[WhiteElo "2391"]
[BlackElo "2484"]
[Result "0-1"]
[Round "08"]
[TimeControl "180+1"]
[Date "2022.10.26"]
[WhiteClock "0:00:01"]
[BlackClock "0:00:02"]

1. e4 {[%clk 0:03:00]}  e6 {[%clk 0:02:59]} 2. d4 {[%clk 0:03:00]}  d5 {[%clk 0:03:00]} 3. Nc3 {[%clk 0:03:01]}  Bb4 {[%clk 0:02:59]} 4. e5 {[%clk 0:03:01]}  c5 {[%clk 0:02:59]} 5. a3 {[%clk 0:03:02]}  Bxc3+ {[%clk 0:02:59]} 6. bxc3 {[%clk 0:03:03]}  Ne7 {[%clk 0:02:59]} 7. h4 {[%clk 0:03:03]}  Qc7 {[%clk 0:02:58]} 8. h5 {[%clk 0:03:03]}  h6 {[%clk 0:02:58]} 9. Rb1 {[%clk 0:03:03]}  b6 {[%clk 0:02:51]} 10. Qg4 {[%clk 0:02:56]}  cxd4 {[%clk 0:02:44]} 11. Qxg7 {[%clk 0:02:46]}  Rg8 {[%clk 0:02:43]} 12. Qxh6 {[%clk 0:02:46]}  Qxe5+ {[%clk 0:02:36]} 13. Ne2 {[%clk 0:02:36]}  dxc3 {[%clk 0:02:33]} 14. Bf4 {[%clk 0:02:35]}  Qe4 {[%clk 0:02:26]} 15. Qf6 {[%clk 0:02:19]}  Nd7 {[%clk 0:02:17]} 16. Qxc3 {[%clk 0:02:18]}  e5 {[%clk 0:02:11]} 17. Bd2 {[%clk 0:02:03]}  d4 {[%clk 0:02:08]} 18. Qd3 {[%clk 0:01:57]}  Bb7 {[%clk 0:02:07]} 19. h6 {[%clk 0:01:43]}  Rc8 {[%clk 0:01:59]} 20. f3 {[%clk 0:01:17]}  Qg6 {[%clk 0:01:39]} 21. Qxg6 {[%clk 0:01:03]}  Nxg6 {[%clk 0:01:39]} 22. c3 {[%clk 0:01:03]}  Nc5 {[%clk 0:01:34]} 23. Ng3 {[%clk 0:00:55]}  d3 {[%clk 0:01:08]} 24. Be3 {[%clk 0:00:45]}  Nf4 {[%clk 0:01:04]} 25. h7 {[%clk 0:00:45]}  Rh8 {[%clk 0:01:04]} 26. Nh5 {[%clk 0:00:26]}  Nd5 {[%clk 0:00:26]} 27. Ng7+ {[%clk 0:00:13]}  Ke7 {[%clk 0:00:25]} 28. Bd2 {[%clk 0:00:09]}  Nf6 {[%clk 0:00:11]} 29. Nf5+ {[%clk 0:00:09]}  Ke6 {[%clk 0:00:11]} 30. Ng7+ {[%clk 0:00:09]}  Kd7 {[%clk 0:00:11]} 31. Be3 {[%clk 0:00:08]}  Rxh7 {[%clk 0:00:10]} 32. Rxh7 {[%clk 0:00:07]}  Nxh7 {[%clk 0:00:10]} 33. Bxc5 {[%clk 0:00:04]}  Rxc5 {[%clk 0:00:11]} 34. Bxd3 {[%clk 0:00:05]}  Nf6 {[%clk 0:00:11]} 35. Kd2 {[%clk 0:00:05]}  Kc7 {[%clk 0:00:09]} 36. Nf5 {[%clk 0:00:03]}  Nd5 {[%clk 0:00:09]} 37. c4 {[%clk 0:00:02]}  Nf4 {[%clk 0:00:09]} 38. Bf1 {[%clk 0:00:03]}  Ra5 {[%clk 0:00:05]} 39. Rb3 {[%clk 0:00:02]}  Ne6 {[%clk 0:00:05]} 40. Ne3 {[%clk 0:00:03]}  Nd4 {[%clk 0:00:06]} 41. Rc3 {[%clk 0:00:03]}  f5 {[%clk 0:00:06]} 42. Nc2 {[%clk 0:00:03]}  Nxc2 {[%clk 0:00:05]} 43. Kxc2 {[%clk 0:00:04]}  Kd6 {[%clk 0:00:05]} 44. Kb2 {[%clk 0:00:03]}  e4 {[%clk 0:00:05]} 45. fxe4 {[%clk 0:00:03]}  fxe4 {[%clk 0:00:05]} 46. Rh3 {[%clk 0:00:02]}  Ke5 {[%clk 0:00:04]} 47. Rh7 {[%clk 0:00:02]}  Bc6 {[%clk 0:00:04]} 48. Rc7 {[%clk 0:00:01]}  Ba4 {[%clk 0:00:03]} 49. Rh7 {[%clk 0:00:01]}  Kd4 {[%clk 0:00:02]} 50. Rh3 {[%clk 0:00:01]}  Rf5 {[%clk 0:00:02]} 0-1


[Site "https://www.chess.com"]

[Event "Titled Tuesday Blitz October 25 Late 2022"]
[White "Yoo, Christopher Woojin"]
[Black "Papasimakopoulos, Alexandros"]
[WhiteFideId "30909694"]
[BlackFideId "4244125"]
[WhiteElo "2463"]
[BlackElo "2357"]
[Result "1-0"]
[Round "08"]
[TimeControl "180+1"]
[Date "2022.10.26"]
[WhiteClock "0:00:07"]
[BlackClock "0:00:26"]

1. e4 {[%clk 0:02:52]}  e6 {[%clk 0:02:59]} 2. d3 {[%clk 0:02:50]}  d5 {[%clk 0:03:00]} 3. Nd2 {[%clk 0:02:51]}  c5 {[%clk 0:02:59]} 4. Ngf3 {[%clk 0:02:52]}  Nc6 {[%clk 0:03:00]} 5. g3 {[%clk 0:02:52]}  g6 {[%clk 0:03:00]} 6. Bg2 {[%clk 0:02:53]}  Bg7 {[%clk 0:03:01]} 7. O-O {[%clk 0:02:52]}  Nge7 {[%clk 0:03:01]} 8. Re1 {[%clk 0:02:52]}  h6 {[%clk 0:03:02]} 9. c3 {[%clk 0:02:48]}  a5 {[%clk 0:03:02]} 10. a4 {[%clk 0:02:48]}  b6 {[%clk 0:03:03]} 11. Qc2 {[%clk 0:02:42]}  O-O {[%clk 0:03:01]} 12. Nf1 {[%clk 0:02:42]}  Ba6 {[%clk 0:03:02]} 13. h4 {[%clk 0:02:39]}  dxe4 {[%clk 0:03:01]} 14. dxe4 {[%clk 0:02:39]}  Bd3 {[%clk 0:02:55]} 15. Qb3 {[%clk 0:02:37]}  c4 {[%clk 0:02:50]} 16. Qa3 {[%clk 0:02:36]}  Qc7 {[%clk 0:02:40]} 17. N1h2 {[%clk 0:02:01]}  Rfd8 {[%clk 0:02:37]} 18. h5 {[%clk 0:01:49]}  g5 {[%clk 0:02:36]} 19. Ng4 {[%clk 0:01:37]}  f5 {[%clk 0:02:27]} 20. exf5 {[%clk 0:01:36]}  exf5 {[%clk 0:02:28]} 21. Nxh6+ {[%clk 0:01:36]}  Bxh6 {[%clk 0:02:27]} 22. Re6 {[%clk 0:01:30]}  Bf8 {[%clk 0:02:25]} 23. Bxg5 {[%clk 0:01:28]}  Rd7 {[%clk 0:02:16]} 24. Nh4 {[%clk 0:01:22]}  Nd5 {[%clk 0:01:49]} 25. Qa2 {[%clk 0:01:16]}  Rd6 {[%clk 0:01:41]} 26. Rae1 {[%clk 0:01:09]}  Qd7 {[%clk 0:01:32]} 27. Rxd6 {[%clk 0:00:59]}  Qxd6 {[%clk 0:01:33]} 28. Ng6 {[%clk 0:01:00]}  Bg7 {[%clk 0:01:11]} 29. h6 {[%clk 0:00:53]}  Bf6 {[%clk 0:01:09]} 30. Bxd5+ {[%clk 0:00:47]}  Qxd5 {[%clk 0:01:07]} 31. Bxf6 {[%clk 0:00:47]}  Kf7 {[%clk 0:01:06]} 32. Nf4 {[%clk 0:00:42]}  Qf3 {[%clk 0:01:06]} 33. Bh4 {[%clk 0:00:38]}  Rh8 {[%clk 0:01:01]} 34. Nxd3 {[%clk 0:00:33]}  Qxd3 {[%clk 0:00:59]} 35. Re3 {[%clk 0:00:23]}  Qd5 {[%clk 0:00:55]} 36. Bg5 {[%clk 0:00:22]}  Ne5 {[%clk 0:00:53]} 37. Rxe5 {[%clk 0:00:23]}  Qxe5 {[%clk 0:00:54]} 38. Qxc4+ {[%clk 0:00:23]}  Kg6 {[%clk 0:00:55]} 39. Qc6+ {[%clk 0:00:19]}  Kh5 {[%clk 0:00:52]} 40. Be3 {[%clk 0:00:13]}  Rg8 {[%clk 0:00:35]} 41. Qh1+ {[%clk 0:00:07]}  Kg6 {[%clk 0:00:34]} 42. h7 {[%clk 0:00:08]}  Rh8 {[%clk 0:00:35]} 43. Qh6+ {[%clk 0:00:08]}  Kf7 {[%clk 0:00:35]} 44. Bd4 {[%clk 0:00:06]}  Qe1+ {[%clk 0:00:35]} 45. Kh2 {[%clk 0:00:06]}  Rxh7 {[%clk 0:00:24]} 46. Qxh7+ {[%clk 0:00:07]}  Ke6 {[%clk 0:00:25]} 47. Qg6+ {[%clk 0:00:07]}  Kd5 {[%clk 0:00:25]} 48. Qxf5+ {[%clk 0:00:07]}  Kc4 {[%clk 0:00:26]} 49. Qb5# {[%clk 0:00:07]} 1-0


[Site "https://www.chess.com"]

[Event "Titled Tuesday Blitz October 25 Late 2022"]
[White "Zhigalko, Sergei"]
[Black "Firouzja, Alireza"]
[WhiteFideId "13502956"]
[BlackFideId "12573981"]
[WhiteElo "2662"]
[BlackElo "2903"]
[Result "0-1"]
[Round "08"]
[TimeControl "180+1"]
[Date "2022.10.26"]
[WhiteClock "0:00:04"]
[BlackClock "0:00:43"]

1. e4 {[%clk 0:03:00]}  c6 {[%clk 0:03:00]} 2. d4 {[%clk 0:03:01]}  d5 {[%clk 0:03:00]} 3. e5 {[%clk 0:03:02]}  Bf5 {[%clk 0:03:00]} 4. Nf3 {[%clk 0:03:02]}  e6 {[%clk 0:03:00]} 5. Be2 {[%clk 0:03:03]}  Ne7 {[%clk 0:03:00]} 6. O-O {[%clk 0:03:04]}  h6 {[%clk 0:02:59]} 7. Nbd2 {[%clk 0:03:04]}  Nd7 {[%clk 0:02:55]} 8. Nb3 {[%clk 0:03:01]}  Bh7 {[%clk 0:02:53]} 9. a4 {[%clk 0:02:54]}  Ng6 {[%clk 0:02:46]} 10. c4 {[%clk 0:02:29]}  dxc4 {[%clk 0:02:46]} 11. Bxc4 {[%clk 0:02:30]}  Nb6 {[%clk 0:02:46]} 12. Bd3 {[%clk 0:02:28]}  Nd5 {[%clk 0:02:47]} 13. Bd2 {[%clk 0:02:21]}  Be7 {[%clk 0:02:46]} 14. Qc2 {[%clk 0:02:20]}  O-O {[%clk 0:02:42]} 15. Rfe1 {[%clk 0:02:08]}  Rc8 {[%clk 0:02:19]} 16. Nc5 {[%clk 0:02:08]}  b6 {[%clk 0:02:17]} 17. Nxe6 {[%clk 0:02:08]}  fxe6 {[%clk 0:02:02]} 18. Bxg6 {[%clk 0:02:08]}  Bxg6 {[%clk 0:01:57]} 19. Qxg6 {[%clk 0:02:09]}  Qe8 {[%clk 0:01:48]} 20. Qxe6+ {[%clk 0:02:09]}  Kh7 {[%clk 0:01:48]} 21. Rac1 {[%clk 0:02:04]}  Qg6 {[%clk 0:01:41]} 22. Qxg6+ {[%clk 0:01:54]}  Kxg6 {[%clk 0:01:41]} 23. Rc2 {[%clk 0:01:37]}  Kf5 {[%clk 0:01:35]} 24. Rec1 {[%clk 0:01:36]}  c5 {[%clk 0:01:34]} 25. b4 {[%clk 0:01:27]}  c4 {[%clk 0:01:33]} 26. Rxc4 {[%clk 0:01:26]}  Rxc4 {[%clk 0:01:34]} 27. Rxc4 {[%clk 0:01:26]}  g5 {[%clk 0:01:35]} 28. h3 {[%clk 0:01:23]}  h5 {[%clk 0:01:34]} 29. b5 {[%clk 0:01:12]}  g4 {[%clk 0:01:33]} 30. hxg4+ {[%clk 0:01:12]}  hxg4 {[%clk 0:01:34]} 31. Nh2 {[%clk 0:00:58]}  Ke4 {[%clk 0:01:34]} 32. Bh6 {[%clk 0:00:41]}  Rg8 {[%clk 0:01:27]} 33. Be3 {[%clk 0:00:09]}  g3 {[%clk 0:01:19]} 34. Nf1 {[%clk 0:00:08]}  gxf2+ {[%clk 0:01:12]} 35. Bxf2 {[%clk 0:00:09]}  Kd3 {[%clk 0:01:12]} 36. Rc6 {[%clk 0:00:08]}  Nf4 {[%clk 0:01:04]} 37. g3 {[%clk 0:00:07]}  Nh3+ {[%clk 0:01:02]} 38. Kg2 {[%clk 0:00:07]}  Nf4+ {[%clk 0:00:54]} 39. Kf3 {[%clk 0:00:05]}  Nd5 {[%clk 0:00:55]} 40. Re6 {[%clk 0:00:01]}  Rf8+ {[%clk 0:00:53]} 41. Kg2 {[%clk 0:00:02]}  Ke2 {[%clk 0:00:53]} 42. Bg1 {[%clk 0:00:01]}  Rxf1 {[%clk 0:00:52]} 43. Rg6 {[%clk 0:00:01]}  Ra1 {[%clk 0:00:45]} 44. Rg4 {[%clk 0:00:02]}  Rxa4 {[%clk 0:00:44]} 45. Re4+ {[%clk 0:00:02]}  Kd3 {[%clk 0:00:45]} 46. Kf3 {[%clk 0:00:03]}  Rb4 {[%clk 0:00:42]} 47. e6 {[%clk 0:00:03]}  Rxb5 {[%clk 0:00:43]} 48. Re5 {[%clk 0:00:04]}  a5 {[%clk 0:00:43]} 49. g4 {[%clk 0:00:01]}  a4 {[%clk 0:00:44]} 50. g5 {[%clk 0:00:02]}  a3 {[%clk 0:00:44]} 51. g6 {[%clk 0:00:03]}  a2 {[%clk 0:00:45]} 52. Re1 {[%clk 0:00:03]}  Rb1 {[%clk 0:00:45]} 53. g7 {[%clk 0:00:03]}  Rxe1 {[%clk 0:00:44]} 54. g8=Q {[%clk 0:00:04]}  Rf1+ {[%clk 0:00:43]} 0-1


[Site "https://www.chess.com"]